bitfinex-derivatives/quotes_ETHF0:USTF0_20250115
["timestamp","ask_amount","ask_price","bid_price","bid_amount"]
[1736961855541,10.48142888,3346.2,3346.1,0.59768]
[1736961856144,10.48142888,3346.2,3346.1,2.85955333]
[1736961856745,1.22306,3346.8,3346.1,2.26187333]
[1736961856942,0.6255,3346.8,3346.5,0.5976]
[1736961857142,1.22307,3346.8,3346.2,0.59766]
[1736961857338,0.6255,3346.8,3346.5,0.59759]
[1736961857648,1.22306,3346.8,3346.1,2.91523627]
[1736961857838,3.80534,3346.9,3346.6,0.59759]
[1736961858038,3.80534,3346.9,3346.6,0.59758]
[1736961858348,0.5975,3347.1,3346.8,0.59754]
[1736961858545,0.59752,3347.0,3346.8,0.59754]
[1736961858745,3.13636693,3347.2,3347.1,0.59748]
[1736961859050,3.2078,3347.3,3347.1,0.59748]
[1736961859547,3.2078,3347.3,3347.2,0.59748]
[1736961859742,3.2078,3347.3,3347.1,0.59749]
[1736961859944,0.59743,3347.5,3346.8,4.18223627]
[1736961860147,0.59742,3347.6,3347.3,0.59745]
[1736961860341,3.2078,3347.7,3346.8,4.18223627]
[1736961860547,3.2078,3347.7,3347.6,0.59741]
[1736961861247,3.2078,3347.7,3347.6,1.23501]
[1736961862853,0.59734,3348.0,3347.7,0.59739]
[1736961863448,0.59734,3348.0,3347.6,1.235]
[1736961863648,0.59734,3348.0,3347.7,0.59739]
[1736961863845,3.2078,3348.3,3347.6,0.6376]
[1736961864047,0.59736,3347.9,3347.7,0.59739]
[1736961864257,3.2078,3348.3,3347.6,0.6376]
[1736961864453,0.59736,3347.9,3347.7,0.59738]
[1736961864654,0.59739,3347.7,3347.6,0.6376]
[1736961865051,3.2078,3348.3,3347.6,0.6376]
[1736961865254,3.2078,3348.3,3347.9,0.59735]
[1736961865548,6.42388397,3348.3,3347.8,0.59736]
[1736961865757,0.59737,3347.9,3347.7,0.59739]
[1736961865959,0.59738,3347.8,3347.7,0.59739]
[1736961866164,0.59737,3347.9,3347.7,0.59739]
[1736961866354,0.59741,3347.6,3347.5,1.266]
[1736961866546,3.12323283,3347.8,3347.5,1.266]
[1736961866750,0.59739,3347.8,3347.6,0.5974]
[1736961867052,3.2078,3347.9,3347.3,1.266]
[1736961867248,0.59742,3347.6,3347.4,0.59744]
[1736961867449,0.59744,3347.5,3347.3,1.86345]
[1736961867644,0.59742,3347.6,3347.4,0.59744]
[1736961867857,3.2078,3347.9,3347.3,1.86345]
[1736961868056,0.59745,3347.4,3347.3,1.266]
[1736961868366,3.2078,3347.9,3347.3,1.266]
[1736961868560,0.59744,3347.5,3347.3,1.86346]
[1736961868952,0.59744,3347.5,3347.3,1.266]
[1736961869254,3.2078,3347.9,3347.3,1.266]
[1736961869462,0.59745,3347.4,3347.3,1.266]
[1736961871056,0.5975,3347.1,3347.0,3.2078]
[1736961871359,0.5975,3347.1,3347.0,4.4738]
[1736961872166,0.59756,3346.8,3346.6,3.2078]
[1736961872351,1.2655,3347.4,3346.6,4.4738]
[1736961872352,0.59757,3346.7,3346.6,4.4738]
[1736961872757,0.6922,3347.0,3346.4,1.265]
[1736961873059,0.59761,3346.5,3346.4,1.265]
[1736961874363,2.18604,3347.0,3345.8,3.8355]
[1736961874364,3.2078,3346.7,3345.8,3.2078]
[1736961874562,0.5977,3346.0,3345.9,1.265]
[1736961874865,0.5977,3346.0,3345.8,44.0078]
[1736961875060,0.5977,3346.0,3345.9,1.265]
[1736961875758,0.59769,3346.1,3345.8,3.80552]
[1736961875957,1.289,3346.4,3345.9,1.265]
[1736961876353,0.59764,3346.3,3345.9,1.265]
[1736961876666,1.289,3346.4,3345.9,1.265]
[1736961877763,0.5977,3346.0,3345.9,1.265]
[1736961877964,3.2078,3346.2,3345.6,40.8]
[1736961878165,0.59775,3345.7,3345.6,42.065]
[1736961878562,0.59775,3345.7,3345.6,1.265]
[1736961879474,4.72734431,3346.1,3345.4,1.265]
[1736961879475,0.59779,3345.5,3345.4,1.265]
[1736961879674,0.59778,3345.6,3345.4,1.8628]
[1736961879976,0.59778,3345.5,3345.4,1.265]
[1736961881168,0.59777,3345.6,3345.4,1.265]
[1736961881576,0.59778,3345.6,3345.4,1.265]
[1736961881766,0.59778,3345.6,3345.4,1.86279]
[1736961882073,3.2078,3345.8,3345.4,1.86279]
[1736961882273,0.59778,3345.6,3345.4,1.86279]
[1736961882667,0.59778,3345.6,3345.4,1.265]
[1736961882863,0.59773,3345.9,3345.6,0.59775]
[1736961883069,0.59771,3346.0,3345.8,0.59772]
[1736961883576,3.8914,3346.2,3345.6,2.26540014]
[1736961883773,0.59769,3346.1,3345.9,0.59771]
[1736961884073,3.8914,3346.2,3345.8,0.59771]
[1736961884278,0.59769,3346.1,3345.6,2.26540014]
[1736961884473,0.59769,3346.1,3345.9,0.59771]
[1736961884678,0.5977,3346.0,3345.8,0.59771]
[1736961884883,0.59769,3346.1,3345.8,0.59771]
[1736961885279,3.2078,3346.6,3345.9,2.26540014]
[1736961885474,0.59762,3346.5,3346.3,0.59764]
[1736961885678,0.6615,3346.9,3346.7,0.59756]
[1736961885679,1.25904,3346.9,3346.7,0.59756]
[1736961885986,3.80531,3347.1,3346.8,2.26540014]
[1736961886281,5.13898,3347.3,3347.1,0.59749]
[1736961886474,1.3337,3347.3,3347.2,0.59748]
[1736961886669,1.93117,3347.3,3347.0,1.266]
[1736961886877,1.93117,3347.3,3347.2,0.59748]
[1736961886878,1.3337,3347.3,3347.2,0.59748]
[1736961887073,0.6712,3347.3,3347.2,0.59748]
[1736961887279,0.5974,3347.7,3347.1,2.26540014]
[1736961887584,0.59739,3347.7,3347.5,0.59742]
[1736961888079,0.59739,3347.7,3347.2,3.2078]
[1736961888381,3.12244057,3347.6,3347.1,2.26540014]
[1736961888576,0.59745,3347.4,3347.2,0.59747]
[1736961888778,0.59745,3347.4,3347.3,0.59746]
[1736961889177,0.59743,3347.5,3347.3,0.59745]
[1736961889482,3.17257044,3347.7,3347.2,0.59747]
[1736961889682,3.2078,3347.3,3346.4,44.0078]
[1736961889884,0.59752,3347.1,3346.8,0.59754]
[1736961890078,0.10712302,3347.2,3346.5,2.91401975]
[1736961890278,0.10712302,3347.2,3346.8,0.59754]
[1736961890477,0.59757,3346.7,3346.4,4.4728]
[1736961890686,0.59759,3346.6,3346.4,5.07042]
[1736961890880,0.5976,3346.6,3346.4,5.07042]
[1736961891076,0.6567,3346.9,3346.4,4.4728]
[1736961891291,0.59761,3346.5,3346.4,4.4728]
[1736961892178,0.59761,3346.5,3346.4,3.2078]
[1736961892376,5.35180462,3346.9,3346.1,1.265]
[1736961892377,0.59766,3346.2,3346.1,1.265]
[1736961892883,0.6811,3346.4,3345.8,1.265]
[1736961893084,0.59772,3345.9,3345.8,1.265]
[1736961893280,0.59771,3345.9,3345.8,1.265]
[1736961893482,4.70196,3346.2,3345.3,0.59781]
[1736961893681,0.59779,3345.5,3345.3,0.59781]
[1736961893886,0.59779,3345.5,3345.2,4.4728]
[1736961894182,0.59776,3345.7,3345.2,7.38681975]
[1736961894380,0.59774,3345.8,3345.2,7.38681975]
[1736961894585,0.59776,3345.7,3345.2,7.38681975]
[1736961894783,0.59776,3345.7,3345.5,0.59778]
[1736961894991,0.59771,3346.0,3345.8,0.59773]
[1736961895182,0.6646,3346.1,3345.2,7.38681975]
[1736961895384,0.59773,3345.9,3345.7,0.59774]
[1736961895684,0.6646,3346.1,3345.7,0.59774]
[1736961895685,3.8724,3346.1,3345.7,0.59774]
[1736961895886,3.80549,3346.1,3345.5,2.91401975]
[1736961896195,3.80548,3346.1,3345.9,0.5977]
[1736961896488,0.5977,3346.0,3345.8,0.59772]
[1736961896782,3.2078,3346.1,3345.8,0.59772]
[1736961896991,3.80548,3346.1,3345.8,0.59772]
[1736961897687,3.2078,3346.1,3345.6,1.9382]
[1736961897884,0.59767,3346.2,3345.9,0.5977]
[1736961898083,0.6811,3346.4,3345.8,2.91401975]
[1736961898291,3.8435,3346.9,3346.1,3.2078]
[1736961898486,3.8435,3346.9,3346.1,6.12181975]
[1736961898788,0.59751,3347.1,3346.8,0.59754]
[1736961898991,3.2078,3347.0,3346.8,0.59754]
[1736961899194,0.59751,3347.1,3346.9,0.59753]
[1736961899780,0.6558,3347.3,3346.7,1.266]
[1736961899987,0.5975,3347.1,3347.0,0.59751]
[1736961900188,0.59754,3346.9,3346.8,0.59754]
[1736961900387,3.418539,3347.1,3346.7,1.266]
[1736961900587,0.6558,3347.3,3347.0,0.59752]
[1736961900588,0.59749,3347.2,3347.0,0.59752]
[1736961900798,0.59752,3347.0,3346.9,0.59753]
[1736961901093,0.5975,3347.1,3347.0,0.59751]
[1736961901290,0.59752,3347.0,3346.9,0.59753]
[1736961902194,0.6558,3347.3,3346.7,1.266]
[1736961902395,0.59754,3346.9,3346.8,0.59754]
[1736961902697,0.59751,3347.1,3347.0,0.5975]
[1736961902891,0.5975,3347.1,3347.0,0.59751]
[1736961903091,3.12374665,3347.2,3346.7,1.266]
[1736961903294,0.6558,3347.3,3347.2,0.59748]
[1736961903594,0.6558,3347.3,3346.9,3.2078]
[1736961903595,0.59737,3347.9,3347.8,0.59737]
[1736961904092,3.80161422,3347.9,3347.8,0.59737]
[1736961904299,0.59738,3347.8,3347.7,0.59738]
[1736961904500,3.80161422,3347.9,3347.8,0.59737]
[1736961904888,0.59736,3347.9,3347.8,0.59737]
[1736961905192,0.59738,3347.8,3347.7,0.59738]
[1736961905398,3.41120825,3347.9,3347.4,1.264]
[1736961905600,3.41120825,3347.9,3347.8,0.59737]
[1736961905900,0.6431,3348.2,3348.1,0.59732]
[1736961906695,0.6431,3348.2,3348.1,3.80512]
[1736961907000,0.6431,3348.2,3348.1,0.59732]
[1736961907597,0.6431,3348.2,3348.0,0.59732]
[1736961907795,0.6431,3348.2,3347.7,3.2078]
[1736961908102,0.6431,3348.2,3348.1,0.59732]
[1736961909399,0.9923104,3348.5,3348.4,0.59727]
[1736961909601,3.2078,3348.8,3348.7,0.59721]
[1736961909898,3.2078,3348.8,3348.7,3.51122975]
[1736961910294,0.59715,3349.1,3348.8,0.59719]
[1736961910493,0.59715,3349.1,3348.5,3.2078]
[1736961910704,1.25284,3349.2,3348.9,0.59717]
[1736961910897,0.6557,3349.2,3348.7,0.59721]
[1736961911201,0.6557,3349.2,3348.5,3.2078]
[1736961911202,0.59716,3349.0,3348.8,0.59719]
[1736961911599,3.2106977,3349.1,3348.5,3.2078]
[1736961911899,0.59722,3348.7,3348.5,0.59725]
[1736961912204,0.59721,3348.8,3348.5,0.59725]
[1736961912402,0.59721,3348.8,3348.6,0.59723]
[1736961912596,0.59721,3348.8,3348.5,0.59723]
[1736961912795,3.2106977,3349.1,3348.3,3.2078]
[1736961913100,0.59721,3348.8,3348.6,0.59722]
[1736961913296,0.59719,3348.9,3348.3,3.2078]
[1736961913488,0.5972,3348.8,3348.6,0.59722]
[1736961914102,0.59721,3348.7,3348.3,3.2078]
[1736961914397,0.59722,3348.7,3348.5,0.59724]
[1736961914997,0.6754,3348.8,3348.5,0.59724]
[1736961915197,0.59721,3348.7,3348.5,0.59724]
[1736961915693,0.59724,3348.6,3348.4,0.59727]
[1736961916192,0.59722,3348.7,3348.5,0.59724]
[1736961916392,0.6754,3348.8,3348.2,1.264]
[1736961916593,0.6557,3349.2,3348.7,0.59721]
[1736961916802,0.6557,3349.2,3349.1,0.59714]
[1736961916996,0.6557,3349.2,3348.6,1.49308]
[1736961917201,0.59712,3349.3,3349.1,0.59713]
[1736961917399,4.4607,3349.4,3348.7,2.91401975]
[1736961917605,4.4607,3349.4,3348.9,3.2078]
[1736961918003,3.8636,3349.4,3349.3,0.59711]
[1736961919103,0.59712,3349.3,3349.2,0.59712]
[1736961919605,3.8636,3349.4,3348.9,4.4718]
[1736961919799,0.59716,3349.0,3348.9,5.06897]
[1736961919999,0.59716,3349.1,3349.0,0.59715]
[1736961920308,0.59716,3349.0,3348.9,1.264]
[1736961920605,0.59724,3348.6,3348.5,1.264]
[1736961920999,0.59722,3348.8,3348.7,0.59721]
[1736961921201,1.24968893,3349.0,3348.5,1.264]
[1736961921397,0.59727,3348.4,3348.3,3.2078]
[1736961922405,0.59732,3348.2,3347.9,1.264]
[1736961922611,0.59733,3348.1,3348.0,0.59732]
[1736961922995,3.2078,3348.4,3348.2,0.59729]
[1736961922996,0.5973,3348.3,3348.2,0.59729]
[1736961923198,3.2078,3348.4,3348.3,0.59728]
[1736961923594,3.80507,3348.4,3348.3,0.59728]
[1736961923809,0.6721,3348.6,3347.8,2.75744]
[1736961924008,0.6721,3348.6,3347.8,5.67145975]
[1736961924204,0.59728,3348.4,3348.3,0.59728]
[1736961924409,0.6721,3348.6,3347.8,5.67145975]
[1736961924810,0.59731,3348.2,3348.1,0.59731]
[1736961925013,0.59732,3348.2,3348.1,0.59731]
[1736961925410,3.22635776,3348.5,3347.9,1.264]
[1736961925611,0.59734,3348.0,3347.9,1.264]
[1736961925810,0.59736,3347.9,3347.8,0.59736]
[1736961926507,0.59735,3348.0,3347.9,0.59735]
[1736961926707,4.001587,3348.2,3347.8,2.91401975]
[1736961926908,0.6595,3348.2,3348.1,0.59732]
[1736961927508,0.59726,3348.5,3348.4,0.59726]
[1736961927715,0.59727,3348.5,3348.3,0.59727]
[1736961928009,0.59727,3348.4,3348.3,0.59727]
[1736961928410,0.59729,3348.3,3348.2,0.59729]
[1736961928599,3.42871496,3348.4,3347.9,4.7012]
[1736961928804,3.42871496,3348.4,3347.9,3.2078]
[1736961929005,3.26120818,3348.5,3347.9,3.2078]
[1736961929205,0.59735,3348.0,3347.9,0.59736]
[1736961929505,0.59733,3348.1,3347.9,0.59736]
[1736961929707,0.59732,3348.2,3348.0,0.59734]
[1736961929909,0.59733,3348.1,3347.9,0.59734]
[1736961930109,0.59733,3348.1,3347.7,1.264]
[1736961930313,0.59733,3348.1,3347.9,0.59734]
[1736961931509,6.66467901,3348.4,3347.7,1.264]
[1736961931510,3.45687901,3348.4,3347.7,1.264]
[1736961931812,1.49316,3348.5,3347.9,0.59735]
[1736961932008,0.59737,3347.9,3347.7,1.86138]
[1736961932311,0.694,3348.6,3347.7,1.264]
[1736961932507,1.49313,3348.5,3348.0,0.59733]
[1736961932824,3.35960669,3348.3,3347.9,3.2078]
[1736961933010,3.35960669,3348.3,3347.9,3.80515]
[1736961933812,3.35960669,3348.3,3347.9,3.2078]
[1736961934015,2.26224593,3348.2,3346.6,2.26224593]
[1736961934220,0.59754,3346.9,3346.7,0.59756]
[1736961934516,0.59757,3346.7,3346.5,46.53199]
[1736961934715,0.59759,3346.6,3346.5,45.9344]
[1736961935219,0.59759,3346.6,3346.5,3.8714]
[1736961936821,0.59759,3346.6,3346.5,0.6636]
[1736961937217,0.59759,3346.6,3346.4,42.66061]
[1736961938622,3.2078,3347.2,3346.4,42.063]
[1736961938821,0.59759,3346.7,3346.5,0.5976]
[1736961939322,0.59758,3346.7,3346.5,0.5976]
[1736961939517,1.49375,3347.1,3346.5,0.5976]
[1736961939723,1.49375,3347.1,3346.4,42.063]
[1736961940022,0.5976,3346.6,3346.4,42.66061]
[1736961940223,0.59761,3346.5,3346.4,42.063]
[1736961940618,0.59766,3346.2,3346.1,4.4708]
[1736961941421,0.59766,3346.2,3345.8,43.71519198]
[1736961941422,0.6408,3346.6,3345.9,1.263]
[1736961941624,0.59769,3346.0,3345.9,1.263]
[1736961943521,0.59769,3346.1,3345.9,1.8607]
[1736961943723,3.2078,3346.4,3345.9,1.263]
[1736961944231,0.59769,3346.0,3345.9,1.263]
[1736961944831,0.59769,3346.0,3345.9,1.86071]
[1736961945128,0.59768,3346.1,3346.0,0.59769]
[1736961945333,0.59768,3346.1,3345.9,1.8607]
[1736961945533,0.59767,3346.2,3346.0,0.59769]
[1736961945831,3.2078,3346.4,3345.9,1.8607]
[1736961946032,3.2078,3346.4,3345.9,1.263]
[1736961946226,0.59769,3346.1,3345.9,1.8607]
[1736961946931,0.59769,3346.0,3345.9,1.8607]
[1736961947134,3.2078,3346.4,3345.9,1.8607]
[1736961947329,0.59764,3346.3,3345.9,1.8607]
[1736961947729,0.59769,3346.1,3345.9,1.8607]
[1736961948228,0.59769,3346.1,3345.9,1.263]
[1736961948432,0.59769,3346.1,3345.9,1.8607]
[1736961948933,3.2078,3346.4,3345.9,1.263]
[1736961949225,3.2078,3346.4,3346.2,0.59765]
[1736961949429,0.59764,3346.3,3346.2,0.59765]
[1736961950026,3.80543,3346.4,3346.3,0.59764]
[1736961951132,3.80543,3346.4,3346.0,2.91519198]
[1736961951133,3.2078,3346.4,3345.9,1.263]
[1736961951330,0.59769,3346.0,3345.9,1.8607]
[1736961951936,0.59769,3346.0,3345.9,0.5977]
[1736961952135,3.2078,3346.4,3345.7,1.264]
[1736961952331,0.59764,3346.3,3346.2,0.59764]
[1736961954635,3.2078,3346.4,3345.7,2.75835]
[1736961954837,3.80544,3346.4,3346.3,0.59764]
[1736961956832,0.59767,3346.3,3346.2,0.59765]
[1736961957437,0.59769,3346.2,3346.1,0.59767]
[1736961959439,3.2078,3346.4,3345.9,2.26462463]
[1736961959636,0.59765,3346.3,3346.2,0.59764]
[1736961960439,0.5977,3346.1,3346.0,0.59769]
[1736961960639,0.59772,3346.0,3345.9,0.5977]
[1736961960837,1.27772,3346.0,3345.9,0.5977]
[1736961961442,0.59771,3345.9,3345.8,1.86172]
[1736961962542,1.2777,3346.0,3345.9,0.59771]
[1736961962741,0.68,3346.0,3345.9,0.59771]
[1736961963138,1.3438,3346.5,3346.3,0.59764]
[1736961963333,3.2078,3347.4,3346.3,2.26462463]
[1736961963539,0.5974,3347.7,3347.5,0.59742]
[1736961963843,0.6489,3347.9,3347.8,0.59737]
[1736961964043,9.31682567,3348.3,3347.8,0.59737]
[1736961964044,0.5973,3348.2,3347.8,0.59737]
[1736961964247,10.63282567,3348.3,3347.9,3.2078]
[1736961964540,9.99972567,3348.3,3348.1,0.59731]
[1736961964745,0.59724,3348.6,3348.4,0.59726]
[1736961965245,3.7582768,3348.6,3348.3,3.80507]
[1736961965844,3.1610368,3348.6,3348.3,3.2078]
[1736961966051,0.59729,3348.3,3348.0,2.26462463]
[1736961966347,0.59729,3348.3,3348.0,2.86195463]
[1736961967543,6.3688368,3348.6,3348.0,2.26462463]
[1736961967745,6.3688368,3348.6,3347.9,1.263]
[1736961968051,0.59731,3348.2,3347.9,1.86035]
[1736961968546,0.5973,3348.3,3348.0,0.59732]
[1736961968751,6.3688368,3348.6,3348.0,0.59733]
[1736961968936,6.3688368,3348.6,3347.9,1.263]
[1736961968937,0.59731,3348.2,3347.9,1.86035]
[1736961969344,6.3688368,3348.6,3347.9,1.263]
[1736961969549,0.59727,3348.4,3348.1,0.59731]
[1736961969750,0.59729,3348.3,3347.9,1.263]
[1736961969942,3.81683577,3348.3,3348.0,0.59733]
[1736961970251,3.81683577,3348.3,3348.1,0.59732]
[1736961970457,3.21954577,3348.3,3347.9,1.263]
[1736961970657,3.21954577,3348.3,3348.2,0.5973]
[1736961970857,3.21954577,3348.3,3348.1,0.59731]
[1736961971056,3.21954577,3348.3,3347.9,1.263]
[1736961971456,0.59731,3348.2,3347.9,1.86034]
[1736961971660,3.21954577,3348.3,3347.9,1.263]
[1736961971858,3.80505,3348.6,3347.9,1.263]
[1736961972068,3.80505,3348.6,3348.3,0.59727]
[1736961972360,0.59725,3348.5,3348.1,0.5973]
[1736961972560,3.2078,3348.6,3348.1,2.26462463]
[1736961972763,3.2078,3348.6,3348.5,0.59725]
[1736961973352,3.2078,3348.6,3348.1,2.26462463]
[1736961973558,0.59729,3348.3,3348.0,0.668]
[1736961973863,0.59729,3348.3,3348.2,1.262]
[1736961974064,3.2078,3348.6,3348.2,1.262]
[1736961974253,3.2078,3348.6,3348.4,0.59725]
[1736961974453,3.80505,3348.6,3348.3,0.59728]
[1736961974655,3.2078,3348.6,3348.5,0.59725]
[1736961975658,0.59716,3349.0,3348.4,2.26462463]
[1736961975862,0.59717,3349.0,3348.8,0.59719]
[1736961976069,0.6383,3349.1,3348.4,2.26462463]
[1736961976290,0.6383,3349.1,3348.8,0.59718]
[1736961976476,0.59719,3348.9,3348.4,2.26462463]
[1736961976673,0.59717,3349.0,3348.8,0.5972]
[1736961976968,0.59718,3348.9,3348.8,0.5972]
[1736961978165,0.6383,3349.1,3348.4,2.26462463]
[1736961978366,0.5972,3348.8,3348.7,0.5972]
[1736961979475,0.6484,3349.0,3348.4,2.26462463]
[1736961979768,0.6484,3349.0,3348.6,0.59721]
[1736961979769,0.59722,3348.7,3348.6,0.59721]
[1736961979966,6.12082463,3349.0,3348.0,0.668]
[1736961980159,0.59732,3348.1,3348.0,1.85933]
[1736961980352,1.49313,3348.5,3348.0,1.262]
[1736961980560,0.59732,3348.1,3348.0,1.85933]
[1736961980960,0.6398,3348.4,3348.0,1.262]
[1736961981165,0.59732,3348.1,3348.0,1.85933]
[1736961981458,0.59731,3348.2,3348.1,0.59732]
[1736961982372,0.59731,3348.2,3348.0,1.262]
[1736961982667,0.6398,3348.4,3348.0,1.262]
[1736961982964,0.6398,3348.4,3348.3,0.59728]
[1736961983262,0.59728,3348.3,3348.2,0.5973]
[1736961983463,0.6398,3348.4,3348.0,1.262]
[1736961983665,0.59729,3348.3,3348.2,0.59729]
[1736961983962,0.6398,3348.4,3348.3,0.59728]
[1736961984369,1.23707,3348.4,3348.2,0.59729]
[1736961984563,0.6398,3348.4,3348.2,0.59729]
[1736961984763,1.23708,3348.4,3348.2,0.59729]
[1736961985257,0.59728,3348.3,3348.2,0.59729]
[1736961985462,0.6398,3348.4,3348.0,1.262]
[1736961985662,1.23707,3348.4,3348.3,0.59728]
[1736961986062,0.6398,3348.4,3348.3,0.59728]
[1736961986261,0.6398,3348.4,3348.0,1.262]
[1736961986569,0.59729,3348.3,3348.1,0.59731]
[1736961986768,0.59733,3348.1,3348.0,1.262]
[1736961986962,0.6398,3348.4,3348.0,1.262]
[1736961987465,0.59731,3348.2,3348.0,1.85933]
[1736961987663,0.59731,3348.2,3348.0,1.262]
[1736961987860,0.6398,3348.4,3348.0,1.85933]
[1736961987861,0.59732,3348.1,3348.0,1.85933]
[1736961988060,1.23708,3348.4,3348.0,1.262]
[1736961988267,0.6398,3348.4,3348.0,1.262]
[1736961988458,0.5973,3348.2,3348.1,0.59731]
[1736961988665,0.59728,3348.3,3348.1,0.59731]
[1736961988867,0.5973,3348.3,3348.1,0.59731]
[1736961989166,0.6398,3348.4,3348.0,1.262]
[1736961989365,1.23707,3348.4,3348.2,0.5973]
[1736961989570,0.6398,3348.4,3348.0,1.262]
[1736961989764,0.59732,3348.1,3348.0,1.262]
[1736961990469,0.59732,3348.1,3348.0,1.85934]
[1736961990665,3.35665433,3348.3,3348.0,1.262]
[1736961990968,0.59732,3348.1,3348.0,1.85934]
[1736961991272,0.6398,3348.4,3348.0,3.52662463]
[1736961991471,0.59729,3348.3,3348.2,0.5973]
[1736961991963,0.6398,3348.4,3348.3,0.59728]
[1736961992368,1.23707,3348.4,3348.3,0.59728]
[1736961992569,0.6398,3348.4,3348.3,0.59728]
[1736961992761,0.6398,3348.4,3348.0,3.52662463]
[1736961993362,1.2864,3348.6,3348.5,0.59725]
[1736961993669,0.5972,3348.8,3348.7,0.59721]
[1736961994068,0.59719,3348.9,3348.8,0.59719]
[1736961994262,1.96583,3349.2,3349.1,0.59714]
[1736961994570,1.49261,3349.7,3348.8,3.2078]
[1736961994571,0.59701,3349.9,3349.8,0.59701]
[1736961994767,0.59699,3350.0,3349.9,0.59699]
[1736961995162,0.59698,3350.1,3349.9,0.59698]
[1736961995369,0.59698,3350.0,3349.9,0.59698]
[1736961995569,2.0382,3350.2,3349.7,3.2078]
[1736961995764,0.59702,3349.8,3349.7,3.2078]
[1736961995965,8.87114607,3350.1,3349.3,1.8581]
[1736961996268,0.59709,3349.4,3349.3,1.8581]
[1736961996469,0.59709,3349.4,3349.3,1.261]
[1736961996971,16.76883038,3358.7,3348.8,3.75758463]
[1736961996972,0.59708,3349.5,3349.0,1.261]
[1736961997168,3.2625498,3349.4,3349.1,2.26462463]
[1736961997369,0.59708,3349.5,3349.3,0.59711]
[1736961997664,3.2078,3349.6,3349.0,1.261]
[1736961997865,0.59714,3349.1,3349.0,1.261]
[1736961998068,0.59722,3348.7,3348.6,0.59723]
[1736961998263,0.59722,3348.7,3348.6,1.261]
[1736961999374,0.59721,3348.7,3348.6,1.261]
[1736961999667,1.49291,3349.0,3348.4,3.2078]
[1736961999868,3.2078,3348.8,3348.4,1.261]
[1736962000072,1.49286,3349.1,3348.4,1.261]
[1736962000073,2.0072,3348.7,3348.4,1.261]
[1736962000374,0.68,3348.7,3348.6,0.59723]
[1736962000570,0.59718,3348.9,3348.7,0.5972]
[1736962000772,0.59717,3349.0,3348.6,0.59723]
[1736962000969,1.9529,3349.1,3348.8,2.26462463]
[1736962001274,2.26462463,3349.8,3349.3,0.59709]
[1736962001275,0.59707,3349.5,3349.3,0.59709]
[1736962001572,3.2078,3349.6,3349.5,0.59707]
[1736962002566,1.9529,3349.8,3349.4,2.26462463]
[1736962002772,0.597,3349.9,3349.7,0.59703]
[1736962002967,0.597,3349.9,3349.7,1.85803]
[1736962003278,0.597,3350.0,3349.7,1.85802]
[1736962003475,0.59698,3350.0,3349.8,0.597]
[1736962003774,3.2078,3350.1,3349.7,1.261]
[1736962003976,0.59702,3349.8,3349.7,1.261]
[1736962005772,3.2078,3350.1,3349.7,1.261]
[1736962006171,0.59702,3349.8,3349.7,1.261]
[1736962007078,3.35933323,3350.0,3349.7,1.261]
[1736962007267,0.59701,3349.9,3349.8,0.59701]
[1736962007674,3.2078,3350.1,3349.7,1.261]
[1736962007869,0.59702,3349.8,3349.7,1.261]
[1736962008772,0.59702,3349.8,3349.7,1.85803]
[1736962009675,0.59702,3349.8,3349.7,1.261]
[1736962012973,0.597,3350.0,3349.7,1.261]
[1736962013177,3.2078,3350.1,3349.7,1.261]
[1736962013367,0.59701,3349.9,3349.8,0.59702]
[1736962013872,3.2078,3350.1,3349.7,1.261]
[1736962014179,0.59702,3349.8,3349.7,1.85803]
[1736962014874,0.59702,3349.8,3349.7,1.261]
[1736962015179,0.59702,3349.8,3349.7,1.85803]
[1736962015569,0.59702,3349.8,3349.7,1.261]
[1736962015971,0.59702,3349.8,3349.7,1.85803]
[1736962016980,0.59702,3349.8,3349.7,1.261]
[1736962017282,0.59702,3349.8,3349.7,1.85803]
[1736962018579,0.59702,3349.8,3349.7,1.261]
[1736962019585,0.59702,3349.8,3349.7,1.85803]
[1736962019786,0.59702,3349.8,3349.7,1.261]
[1736962020379,0.59702,3349.8,3349.7,1.85803]
[1736962020585,0.59701,3349.9,3349.8,0.597]
[1736962020782,3.8047732,3350.0,3349.9,0.597]
[1736962020978,1.2729,3350.2,3349.8,3.2078]
[1736962021178,0.59678,3351.2,3350.0,2.26462463]
[1736962021378,0.59678,3351.2,3351.0,2.26462463]
[1736962021379,2.009,3351.2,3351.0,2.26462463]
[1736962021585,9.31682567,3351.3,3351.2,0.59677]
[1736962021983,7.10992567,3351.3,3351.2,0.59677]
[1736962022185,7.10992567,3352.1,3351.0,2.92512463]
[1736962022385,7.10992567,3352.1,3351.9,3.2078]
[1736962022686,7.10992567,3352.1,3352.0,0.59662]
[1736962022881,7.10992567,3352.1,3351.9,1.85763]
[1736962023087,7.10992567,3352.1,3352.0,0.59662]
[1736962023494,3.2078,3353.0,3351.9,4.4688]
[1736962023686,0.6493,3352.9,3352.4,2.26462463]
[1736962023992,0.59651,3352.7,3352.4,2.26462463]
[1736962024186,3.88977327,3352.9,3352.4,2.26462463]
[1736962024387,3.88977327,3352.9,3352.7,0.59649]
[1736962024588,3.88977327,3352.9,3352.6,1.26]
[1736962024792,3.88977327,3352.9,3352.8,3.80428]
[1736962024793,0.6493,3352.9,3352.8,3.80428]